[Event "ONJK 2024 ABC"]
[Site "Velp, Netherlands"]
[Date "2024.08.08"]
[Round "9.17"]
[White "Hesse, Frederik"]
[Black "Bloemberg, Jesper"]
[Result "1/2-1/2"]
[TimeControl "90 minutes + 30 seconds"]
[WhiteElo "1684"]
[BlackElo "1692"]

1. d4 {[%clk 01:30:30]} {[%emt 00:00:30]} Nf6 {[%clk 01:30:52]} {[%emt
00:00:08]} 2. c4 {[%clk 01:30:53]} {[%emt 00:00:07]} g6 {[%clk 01:31:14]}
{[%emt 00:00:07]} 3. Nc3 {[%clk 01:31:18]} {[%emt 00:00:06]} Bg7 {[%clk
01:31:40]} {[%emt 00:00:04]} 4. Bf4 {[%clk 01:31:36]} {[%emt 00:00:12]} O-O
{[%clk 01:31:29]} {[%emt 00:00:40]} 5. Qd2 {[%clk 01:31:32]} {[%emt 00:00:34]}
d6 {[%clk 01:31:15]} {[%emt 00:00:44]} 6. Nf3 {[%clk 01:31:51]} {[%emt
00:00:11]} Nbd7 {[%clk 01:31:02]} {[%emt 00:00:43]} 7. Bh6 {[%clk 01:32:00]}
{[%emt 00:00:21]} e5 {[%clk 01:29:53]} {[%emt 00:01:39]} 8. Bxg7 {[%clk
01:32:19]} {[%emt 00:00:11]} Kxg7 {[%clk 01:30:16]} {[%emt 00:00:07]} 9. O-O-O
{[%clk 01:32:00]} {[%emt 00:00:49]} e4 {[%clk 01:27:47]} {[%emt 00:02:59]} 10.
Ng5 {[%clk 01:31:28]} {[%emt 00:01:03]} Re8 {[%clk 01:25:46]} {[%emt 00:02:31]}
11. Qf4 {[%clk 01:28:45]} {[%emt 00:03:13]} Qe7 {[%clk 01:24:32]} {[%emt
00:01:44]} 12. f3 {[%clk 01:26:15]} {[%emt 00:03:00]} e3 {[%clk 01:22:01]}
{[%emt 00:03:00]} 13. g4 {[%clk 01:24:28]} {[%emt 00:02:17]} h6 {[%clk
01:20:04]} {[%emt 00:02:27]} 14. Nge4 {[%clk 01:24:50]} {[%emt 00:00:09]} Nxe4
{[%clk 01:18:19]} {[%emt 00:02:15]} 15. Nxe4 {[%clk 01:25:02]} {[%emt
00:00:18]} Nf6 {[%clk 01:13:57]} {[%emt 00:04:50]} 16. g5 {[%clk 01:22:04]}
{[%emt 00:03:29]} hxg5 {[%clk 01:13:20]} {[%emt 00:01:06]} 17. Nxg5 {[%clk
01:21:48]} {[%emt 00:00:47]} Nh5 {[%clk 01:12:38]} {[%emt 00:01:12]} 18. Qe4
{[%clk 01:19:42]} {[%emt 00:02:37]} Qd8 {[%clk 01:05:27]} {[%emt 00:07:39]} 19.
Qd5 {[%clk 01:18:22]} {[%emt 00:01:52]} f6 {[%clk 01:04:56]} {[%emt 00:01:00]}
20. Qf7+ {[%clk 01:18:24]} {[%emt 00:00:28]} Kh6 {[%clk 01:05:06]} {[%emt
00:00:20]} 21. Qh7+ {[%clk 01:18:03]} {[%emt 00:00:52]} Kxg5 {[%clk 01:05:29]}
{[%emt 00:00:07]} 22. Rg1+ {[%clk 01:18:14]} {[%emt 00:00:18]} Kf4 {[%clk
01:05:35]} {[%emt 00:00:24]} 23. d5 {[%clk 01:13:17]} {[%emt 00:05:28]} Bf5
{[%clk 01:04:58]} {[%emt 00:01:05]} 24. Bh3 {[%clk 01:12:09]} {[%emt 00:01:39]}
Rh8 {[%clk 01:04:29]} {[%emt 00:00:59]} 25. Qf7 {[%clk 01:11:19]} {[%emt
00:01:20]} Qf8 {[%clk 01:04:09]} {[%emt 00:00:50]} 26. Rd4+ {[%clk 01:11:23]}
{[%emt 00:00:26]} Ke5 {[%clk 01:04:30]} {[%emt 00:00:09]} 27. Re4+ {[%clk
01:10:24]} {[%emt 00:01:30]} Bxe4 {[%clk 01:04:43]} {[%emt 00:00:17]} 28. Qe6+
{[%clk 01:10:47]} {[%emt 00:00:07]} Kd4 {[%clk 01:05:06]} {[%emt 00:00:06]} 29.
Qxe4+ {[%clk 01:10:51]} {[%emt 00:00:26]} Kc5 {[%clk 01:05:29]} {[%emt
00:00:07]} 30. Qxe3+ {[%clk 01:10:39]} {[%emt 00:00:43]} Kxc4 {[%clk 01:05:39]}
{[%emt 00:00:20]} 31. Qd3+ {[%clk 01:10:59]} {[%emt 00:00:09]} Kc5 {[%clk
01:05:58]} {[%emt 00:00:10]} 32. Kb1 {[%clk 01:10:09]} {[%emt 00:01:21]} Kb6
{[%clk 01:06:20]} {[%emt 00:00:08]} 33. Qb3+ {[%clk 01:09:52]} {[%emt
00:00:47]} Ka6 {[%clk 01:06:37]} {[%emt 00:00:13]} 34. Qa4+ {[%clk 01:09:04]}
{[%emt 00:01:18]} Kb6 {[%clk 01:07:01]} {[%emt 00:00:06]} 35. Qd4+ {[%clk
01:02:41]} {[%emt 00:06:53]} 1/2-1/2

[Event "ONJK 2024 ABC"]
[Site "Velp, Netherlands"]
[Date "2024.08.08"]
[Round "9.18"]
[White "Dijkhuijsen, Thomas"]
[Black "Hardeman, Imara"]
[Result "1/2-1/2"]
[TimeControl "90 minutes + 30 seconds"]
[WhiteElo "1750"]
[BlackElo "1549"]

1. e4 {[%clk 01:30:59]} {[%emt 14:18:31]} c6 {[%clk 01:30:58]} {[%emt
00:00:04]} 2. d4 {[%clk 01:31:22]} {[%emt 00:00:06]} d5 {[%clk 01:31:23]}
{[%emt 00:00:06]} 3. Nc3 {[%clk 01:31:51]} dxe4 {[%clk 01:31:32]} {[%emt
00:00:20]} 4. Nxe4 {[%clk 01:32:12]} {[%emt 00:00:08]} Bf5 {[%clk 01:31:55]}
{[%emt 00:00:08]} 5. Ng3 {[%clk 01:32:41]} Bg6 {[%clk 01:32:15]} {[%emt
00:00:10]} 6. Nf3 {[%clk 01:33:09]} {[%emt 00:00:02]} e6 {[%clk 01:32:33]}
{[%emt 00:00:13]} 7. Bd3 {[%clk 01:33:09]} {[%emt 00:00:29]} Bxd3 {[%clk
01:32:46]} {[%emt 00:00:17]} 8. Qxd3 {[%clk 01:33:22]} {[%emt 00:00:18]} Nf6
{[%clk 01:32:52]} {[%emt 00:00:24]} 9. O-O {[%clk 01:33:17]} {[%emt 00:00:34]}
Be7 {[%clk 01:31:18]} {[%emt 00:02:04]} 10. b3 {[%clk 01:30:26]} {[%emt
00:03:21]} O-O {[%clk 01:31:20]} {[%emt 00:00:28]} 11. Bb2 {[%clk 01:30:17]}
{[%emt 00:00:39]} Nbd7 {[%clk 01:31:03]} {[%emt 00:00:46]} 12. Rad1 {[%clk
01:28:26]} {[%emt 00:02:21]} Qc7 {[%clk 01:28:05]} {[%emt 00:03:29]} 13. c4
{[%clk 01:23:31]} {[%emt 00:05:25]} Rfd8 {[%clk 01:23:06]} {[%emt 00:05:28]} 14.
Qc3 {[%clk 01:20:43]} {[%emt 00:03:19]} Rac8 {[%clk 01:21:10]} {[%emt
00:02:27]} 15. Ne5 {[%clk 01:14:15]} {[%emt 00:06:56]} Bd6 {[%clk 01:13:12]}
{[%emt 00:08:28]} 16. f4 {[%clk 01:07:28]} {[%emt 00:07:18]} Re8 {[%clk
01:05:06]} {[%emt 00:08:35]} 17. c5 {[%clk 01:02:15]} {[%emt 00:05:43]} Be7
{[%clk 01:03:41]} {[%emt 00:01:55]} 18. Nc4 {[%clk 00:57:47]} {[%emt 00:04:57]}
Nd5 {[%clk 01:02:37]} {[%emt 00:01:35]} 19. Qf3 {[%clk 00:55:04]} {[%emt
00:03:13]} N7f6 {[%clk 00:59:43]} {[%emt 00:03:25]} 20. Ne4 {[%clk 00:53:27]}
{[%emt 00:02:06]} Nxe4 {[%clk 00:57:44]} {[%emt 00:02:29]} 21. Qxe4 {[%clk
00:53:49]} {[%emt 00:00:07]} Red8 {[%clk 00:55:25]} {[%emt 00:02:51]} 22. Ne3
{[%clk 00:48:55]} {[%emt 00:05:22]} Nxe3 {[%clk 00:54:41]} {[%emt 00:01:15]} 23.
Qxe3 {[%clk 00:49:15]} {[%emt 00:00:09]} Rd5 {[%clk 00:51:24]} {[%emt
00:03:49]} 24. b4 {[%clk 00:43:07]} {[%emt 00:06:37]} Bf6 {[%clk 00:49:51]}
{[%emt 00:02:03]} 25. Rd3 {[%clk 00:37:39]} {[%emt 00:05:58]} Rcd8 {[%clk
00:48:59]} {[%emt 00:01:22]} 26. Rfd1 {[%clk 00:37:29]} {[%emt 00:00:39]} Qd7
{[%clk 00:46:55]} {[%emt 00:02:36]} 27. Ra3 {[%clk 00:34:13]} {[%emt 00:03:45]}
a6 {[%clk 00:45:58]} {[%emt 00:01:28]} 28. Rad3 {[%clk 00:34:32]} {[%emt
00:00:10]} Qc7 {[%clk 00:44:23]} {[%emt 00:02:06]} 29. Qd2 {[%clk 00:30:07]}
{[%emt 00:04:53]} Qd7 {[%clk 00:44:35]} {[%emt 00:00:19]} 30. a4 {[%clk
00:28:54]} {[%emt 00:01:43]} Qc7 {[%clk 00:43:11]} {[%emt 00:01:55]} 31. a5
{[%clk 00:29:10]} {[%emt 00:00:14]} Qd7 {[%clk 00:43:30]} {[%emt 00:00:11]} 32.
g4 {[%clk 00:26:35]} {[%emt 00:03:04]} g6 {[%clk 00:41:50]} {[%emt 00:02:10]}
33. g5 {[%clk 00:24:29]} {[%emt 00:02:36]} Bg7 {[%clk 00:41:59]} {[%emt
00:00:20]} 34. h4 {[%clk 00:24:16]} {[%emt 00:00:42]} e5 {[%clk 00:38:06]}
{[%emt 00:04:24]} 35. fxe5 {[%clk 00:19:07]} {[%emt 00:05:38]} Bxe5 {[%clk
00:37:30]} {[%emt 00:01:07]} 36. Qe2 {[%clk 00:15:33]} {[%emt 00:04:04]} Bg7
{[%clk 00:36:22]} {[%emt 00:01:38]} 37. Qf3 {[%clk 00:11:45]} {[%emt 00:04:18]}
Rf5 {[%clk 00:34:51]} {[%emt 00:02:01]} 38. Qg3 {[%clk 00:10:08]} {[%emt
00:02:06]} Rd5 {[%clk 00:32:53]} {[%emt 00:02:24]} 1/2-1/2

[Event "ONJK 2024 ABC"]
[Site "Velp, Netherlands"]
[Date "2024.08.08"]
[Round "9.19"]
[White "Lejzerowicz, Nathan"]
[Black "Zeenni, Joseph"]
[Result "0-1"]
[TimeControl "90 minutes + 30 seconds"]
[WhiteElo "1668"]
[BlackElo "1688"]

1. c4 {[%clk 01:30:51]} {[%emt 00:00:08]} e5 {[%clk 01:30:22]} {[%emt
00:00:38]} 2. Nc3 {[%clk 01:30:49]} {[%emt 00:00:33]} Bb4 {[%clk 01:30:30]}
{[%emt 00:00:21]} 3. g3 {[%clk 01:30:16]} {[%emt 00:01:02]} Bxc3 {[%clk
01:30:51]} {[%emt 00:00:10]} 4. bxc3 {[%clk 01:29:46]} {[%emt 00:01:00]} d6
{[%clk 01:30:43]} {[%emt 00:00:38]} 5. Bg2 {[%clk 01:28:50]} {[%emt 00:01:26]}
Ne7 {[%clk 01:28:28]} {[%emt 00:02:45]} 6. d3 {[%clk 01:27:37]} {[%emt
00:01:44]} O-O {[%clk 01:26:51]} {[%emt 00:02:06]} 7. Nf3 {[%clk 01:26:25]}
{[%emt 00:01:43]} Nbc6 {[%clk 01:17:03]} {[%emt 00:10:18]} 8. O-O {[%clk
01:23:42]} {[%emt 00:03:12]} Bf5 {[%clk 01:15:54]} {[%emt 00:01:39]} 9. Re1
{[%clk 01:17:49]} {[%emt 00:06:24]} Qd7 {[%clk 01:14:07]} {[%emt 00:02:17]} 10.
Rb1 {[%clk 01:14:49]} {[%emt 00:03:30]} b6 {[%clk 01:12:16]} {[%emt 00:02:21]}
11. Be3 {[%clk 01:08:04]} {[%emt 00:07:14]} Bh3 {[%clk 01:09:26]} {[%emt
00:03:20]} 12. Bh1 {[%clk 01:05:32]} {[%emt 00:03:01]} f5 {[%clk 01:04:13]}
{[%emt 00:05:44]} 13. Bg2 {[%clk 00:49:41]} {[%emt 00:16:20]} f4 {[%clk
00:53:00]} {[%emt 00:11:44]} 14. Bd2 {[%clk 00:48:06]} {[%emt 00:02:05]} h6
{[%clk 00:46:07]} {[%emt 00:07:24]} 15. Rf1 {[%clk 00:41:34]} {[%emt 00:07:01]}
Rf6 {[%clk 00:36:58]} {[%emt 00:09:39]} 16. e3 {[%clk 00:35:43]} {[%emt
00:06:21]} Raf8 {[%clk 00:32:40]} {[%emt 00:04:48]} 17. exf4 {[%clk 00:32:32]}
{[%emt 00:03:40]} exf4 {[%clk 00:31:44]} {[%emt 00:01:27]} 18. Qe2 {[%clk
00:28:54]} {[%emt 00:04:07]} g5 {[%clk 00:26:34]} {[%emt 00:05:41]} 19. Qd1
{[%clk 00:22:23]} {[%emt 00:07:00]} Bxg2 {[%clk 00:19:11]} {[%emt 00:07:53]} 20.
Kxg2 {[%clk 00:22:36]} {[%emt 00:00:16]} fxg3 {[%clk 00:19:31]} {[%emt
00:00:11]} 21. Ng1 {[%clk 00:15:25]} {[%emt 00:07:41]} gxf2 {[%clk 00:11:00]}
{[%emt 00:09:02]} 22. Nh3 {[%clk 00:14:11]} {[%emt 00:01:43]} Rf3 {[%clk
00:09:59]} {[%emt 00:01:32]} 23. Nxf2 {[%clk 00:12:44]} {[%emt 00:01:55]} Ne5
{[%clk 00:05:21]} {[%emt 00:05:10]} 24. Qe2 {[%clk 00:08:42]} {[%emt 00:04:31]}
Qf5 {[%clk 00:03:49]} {[%emt 00:02:03]} 25. Be3 {[%clk 00:07:26]} {[%emt
00:01:46]} Nxd3 {[%clk 00:03:28]} {[%emt 00:00:50]} 26. Qxd3 {[%clk 00:05:33]}
{[%emt 00:02:24]} Qxd3 {[%clk 00:03:42]} {[%emt 00:00:16]} 27. Nxd3 {[%clk
00:05:57]} {[%emt 00:00:06]} Rxe3 {[%clk 00:04:08]} {[%emt 00:00:04]} 28. Rxf8+
{[%clk 00:06:04]} {[%emt 00:00:22]} Kxf8 {[%clk 00:04:35]} {[%emt 00:00:03]} 29.
Rf1+ {[%clk 00:06:13]} {[%emt 00:00:22]} Kg7 {[%clk 00:04:44]} {[%emt
00:00:21]} 30. Rf3 {[%clk 00:06:29]} {[%emt 00:00:14]} Re2+ {[%clk 00:04:47]}
{[%emt 00:00:26]} 31. Rf2 {[%clk 00:06:39]} {[%emt 00:00:20]} Re3 {[%clk
00:05:16]} {[%emt 00:00:01]} 32. Rf3 {[%clk 00:06:55]} {[%emt 00:00:14]} Rxf3
{[%clk 00:05:31]} {[%emt 00:00:16]} 33. Kxf3 {[%clk 00:07:22]} {[%emt
00:00:03]} Nc6 {[%clk 00:05:39]} {[%emt 00:00:23]} 34. Ke4 {[%clk 00:07:31]}
{[%emt 00:00:20]} Ne5 {[%clk 00:03:29]} {[%emt 00:02:41]} 35. Nxe5 {[%clk
00:05:33]} {[%emt 00:02:27]} dxe5 {[%clk 00:03:55]} {[%emt 00:00:04]} 36. c5
{[%clk 00:05:36]} {[%emt 00:00:27]} Kf6 {[%clk 00:03:49]} {[%emt 00:00:35]} 37.
cxb6 {[%clk 00:05:12]} {[%emt 00:00:55]} cxb6 {[%clk 00:03:33]} {[%emt
00:00:46]} 38. a4 {[%clk 00:05:20]} {[%emt 00:00:22]} Ke6 {[%clk 00:03:06]}
{[%emt 00:00:57]} 39. c4 {[%clk 00:04:51]} {[%emt 00:00:59]} a5 {[%clk
00:02:18]} {[%emt 00:01:17]} 40. h3 {[%clk 00:04:40]} {[%emt 00:00:40]} h5
{[%clk 00:01:39]} {[%emt 00:01:10]} 41. Ke3 {[%clk 00:04:13]} {[%emt 00:00:58]}
Kf5 {[%clk 00:01:21]} {[%emt 00:00:48]} 42. Kf3 {[%clk 00:04:14]} {[%emt
00:00:29]} g4+ {[%clk 00:01:09]} {[%emt 00:00:42]} 43. hxg4+ {[%clk 00:04:16]}
{[%emt 00:00:28]} hxg4+ {[%clk 00:01:26]} {[%emt 00:00:13]} 44. Ke3 {[%clk
00:04:26]} {[%emt 00:00:20]} e4 {[%clk 00:01:21]} {[%emt 00:00:34]} 45. Kf2
{[%clk 00:04:28]} {[%emt 00:00:28]} Kf4 {[%clk 00:01:17]} {[%emt 00:00:34]} 46.
Ke2 {[%clk 00:04:36]} {[%emt 00:00:23]} g3 {[%clk 00:01:21]} {[%emt 00:00:26]}
47. Kf1 {[%clk 00:04:32]} {[%emt 00:00:34]} Kf3 {[%clk 00:01:06]} {[%emt
00:00:45]} 48. c5 {[%clk 00:04:25]} {[%emt 00:00:37]} g2+ {[%clk 00:01:11]}
{[%emt 00:00:25]} 49. Kg1 {[%clk 00:04:30]} {[%emt 00:00:24]} bxc5 {[%clk
00:01:26]} {[%emt 00:00:15]} 50. Kh2 {[%clk 00:04:48]} {[%emt 00:00:13]} Kf2
{[%clk 00:01:25]} {[%emt 00:00:29]} 51. Kh3 {[%clk 00:05:06]} {[%emt 00:00:13]}
g1=Q {[%clk 00:01:16]} {[%emt 00:00:39]} 52. Kh4 {[%clk 00:05:25]} {[%emt
00:00:12]} Kf3 {[%clk 00:01:17]} {[%emt 00:00:29]} 53. Kh5 {[%clk 00:05:37]}
{[%emt 00:00:18]} Kf4 {[%clk 00:01:29]} {[%emt 00:00:18]} 54. Kh6 {[%clk
00:05:57]} {[%emt 00:00:09]} Kf5 {[%clk 00:01:36]} {[%emt 00:00:24]} 55. Kh7
{[%clk 00:06:23]} {[%emt 00:00:04]} Kf6 {[%clk 00:01:47]} {[%emt 00:00:18]} 56.
Kh8 {[%clk 00:06:44]} {[%emt 00:00:09]} Qg7# {[%clk 00:01:08]} {[%emt
00:00:39]} 0-1

[Event "ONJK 2024 ABC"]
[Site "Velp, Netherlands"]
[Date "2024.08.08"]
[Round "9.20"]
[White "Maes, Lander"]
[Black "Breider, Jayden"]
[Result "0-1"]
[TimeControl "90 minutes + 30 seconds"]
[WhiteElo "1645"]
[BlackElo "1594"]

1. e4 {[%clk 01:31:00]} {[%emt 14:17:51]} c5 {[%clk 01:30:57]} {[%emt
00:00:03]} 2. Nc3 {[%clk 01:30:59]} {[%emt 00:00:32]} d6 {[%clk 01:31:21]}
{[%emt 00:00:04]} 3. g3 {[%clk 01:31:26]} {[%emt 00:00:03]} Nc6 {[%clk
01:31:47]} {[%emt 00:00:04]} 4. Bg2 {[%clk 01:31:52]} {[%emt 00:00:04]} g6
{[%clk 01:32:09]} {[%emt 00:00:09]} 5. d3 {[%clk 01:32:16]} {[%emt 00:00:06]}
Bg7 {[%clk 01:32:34]} {[%emt 00:00:05]} 6. Be3 {[%clk 01:32:39]} {[%emt
00:00:06]} Rb8 {[%clk 01:33:00]} {[%emt 00:00:05]} 7. f4 {[%clk 01:32:16]}
{[%emt 00:00:53]} e6 {[%clk 01:33:19]} {[%emt 00:00:11]} 8. Nf3 {[%clk
01:32:03]} {[%emt 00:00:42]} Nge7 {[%clk 01:33:44]} {[%emt 00:00:06]} 9. Qd2
{[%clk 01:32:19]} {[%emt 00:00:14]} O-O {[%clk 01:33:50]} {[%emt 00:00:23]} 10.
h3 {[%clk 01:30:11]} {[%emt 00:02:38]} b5 {[%clk 01:30:25]} {[%emt 00:03:56]}
11. g4 {[%clk 01:24:19]} {[%emt 00:06:22]} b4 {[%clk 01:27:50]} {[%emt
00:03:05]} 12. Nd1 {[%clk 01:24:33]} {[%emt 00:00:14]} Qc7 {[%clk 01:10:33]}
{[%emt 00:17:49]} 13. g5 {[%clk 01:11:05]} {[%emt 00:13:58]} a5 {[%clk
01:01:54]} {[%emt 00:09:09]} 14. h4 {[%clk 00:50:17]} {[%emt 00:21:17]} a4
{[%clk 00:54:52]} {[%emt 00:07:33]} 15. c3 {[%clk 00:46:37]} {[%emt 00:04:10]}
e5 {[%clk 00:37:25]} {[%emt 00:17:57]} 16. fxe5 {[%clk 00:24:12]} {[%emt
00:22:55]} Nxe5 {[%clk 00:37:05]} {[%emt 00:00:50]} 17. Nxe5 {[%clk 00:22:48]}
{[%emt 00:01:54]} Bxe5 {[%clk 00:37:16]} {[%emt 00:00:19]} 18. Bf4 {[%clk
00:22:33]} {[%emt 00:00:44]} d5 {[%clk 00:33:24]} {[%emt 00:04:23]} 19. O-O
{[%clk 00:11:13]} {[%emt 00:11:50]} Be6 {[%clk 00:25:55]} {[%emt 00:07:59]} 20.
d4 {[%clk 00:04:02]} {[%emt 00:07:42]} Bxf4 {[%clk 00:25:04]} {[%emt 00:01:20]}
21. Rxf4 {[%clk 00:03:21]} {[%emt 00:01:11]} cxd4 {[%clk 00:18:10]} {[%emt
00:07:24]} 22. cxd4 {[%clk 00:02:05]} {[%emt 00:01:46]} Rfc8 {[%clk 00:17:39]}
{[%emt 00:01:01]} 23. Ne3 {[%clk 00:01:35]} {[%emt 00:01:00]} Qxf4 {[%clk
00:17:39]} {[%emt 00:00:30]} 0-1